bitfinex/quotes_SOLUSD_20241110
["timestamp","ask_amount","ask_price","bid_price","bid_amount"]
[1731257717896,11.91216975,210.6,210.54,16.4274]
[1731257718113,11.91216975,210.57,210.54,16.4274]
[1731257718297,11.91216975,210.6,210.54,16.4274]
[1731257719004,24.7469,210.66,210.54,16.4274]
[1731257719211,11.91216975,210.55,210.53,6.6227]
[1731257719424,11.91216975,210.54,210.53,6.6227]
[1731257720507,11.91216975,210.54,210.49,16.4274]
[1731257720508,11.91216975,210.54,210.5,4.7504]
[1731257721408,11.91216975,210.53,210.5,4.7504]
[1731257721805,11.91216975,210.52,210.5,4.7504]
[1731257722001,11.91216975,210.53,210.5,4.7504]
[1731257722326,11.91216975,210.56,210.5,24.7504]
[1731257722624,11.91216975,210.57,210.51,23.776884]
[1731257723118,11.91216975,210.52,210.5,4.7504]
[1731257723300,11.91216975,210.53,210.5,4.7504]
[1731257723504,0.2,210.63,210.5,4.7504]
[1731257723505,11.91216975,210.54,210.5,4.7504]
[1731257723911,11.91216975,210.55,210.5,4.7504]
[1731257724119,11.91216975,210.56,210.51,23.776884]
[1731257724326,11.91216975,210.58,210.51,35.68905375]
[1731257725003,4.7476,210.64,210.51,35.68905375]
[1731257725004,11.91216975,210.56,210.51,23.776884]
[1731257725519,11.91216975,210.57,210.51,28.527184]
[1731257725718,4.7476,210.64,210.51,28.527184]
[1731257725719,11.91216975,210.56,210.51,40.402584]
[1731257725920,4.7476,210.64,210.49,28.33956975]
[1731257725921,11.91216975,210.52,210.49,16.4274]
[1731257726118,11.91216975,210.5,210.48,6.6227]
[1731257726428,20.0,210.53,210.43,6.6227]
[1731257726614,11.91216975,210.44,210.43,6.6227]
[1731257726932,11.91216975,210.44,210.42,16.6332]
[1731257727408,20.0,210.59,210.43,11.91216975]
[1731257727615,11.91216975,210.52,210.45,11.91216975]
[1731257727929,11.91216975,210.53,210.46,11.91216975]
[1731257728129,11.91216975,210.53,210.47,23.776884]
[1731257728429,11.91216975,210.52,210.47,6.5296]
[1731257728614,11.91216975,210.5,210.47,6.5296]
[1731257728834,19.05164452,210.5,210.47,6.5296]
[1731257729114,19.05164452,210.48,210.42,23.1628]
[1731257729431,19.05164452,210.49,210.42,42.21444452]
[1731257729941,19.05164452,210.47,210.42,23.1628]
[1731257730429,19.05164452,210.49,210.43,23.776884]
[1731257730928,19.05164452,210.45,210.42,23.1628]
[1731257731147,19.05164452,210.46,210.42,23.1628]
[1731257731312,19.05164452,210.47,210.42,23.1628]
[1731257731513,19.05164452,210.48,210.42,23.1628]
[1731257731706,19.05164452,210.46,210.42,23.1628]
[1731257731914,19.05164452,210.47,210.42,23.1628]
[1731257732117,19.05164452,210.48,210.42,23.1628]
[1731257732314,19.05164452,210.49,210.43,43.776884]
[1731257732529,0.1,210.58,210.43,43.776884]
[1731257732530,19.05164452,210.5,210.43,62.82852852]
[1731257732736,19.05164452,210.51,210.43,62.82852852]
[1731257733226,19.05164452,210.5,210.45,43.776884]
[1731257733608,4.749,210.57,210.45,23.776884]
[1731257733932,19.05164452,210.49,210.45,23.776884]
[1731257734111,19.05164452,210.48,210.44,16.6317]
[1731257734315,19.05164452,210.47,210.44,16.6317]
[1731257734933,4.7499,210.53,210.44,16.6317]
[1731257734934,19.05164452,210.46,210.44,16.6317]
[1731257735122,19.05164452,210.48,210.44,16.6317]
[1731257735953,19.05164452,210.49,210.44,16.6317]
[1731257737121,19.05164452,210.5,210.45,23.776884]
[1731257737310,19.05164452,210.51,210.45,23.776884]
[1731257737507,19.05164452,210.5,210.45,23.776884]
[1731257737707,19.05164452,210.49,210.45,23.776884]
[1731257737918,19.05164452,210.47,210.42,6.5296]
[1731257738123,19.05164452,210.46,210.42,6.5296]
[1731257738715,20.0,210.53,210.42,6.5296]
[1731257738716,19.05164452,210.45,210.42,6.5296]
[1731257739414,25.05285577,210.53,210.42,6.5296]
[1731257739415,19.05164452,210.44,210.42,18.4105]
[1731257739614,19.05164452,210.44,210.42,11.8809]
[1731257739822,19.05164452,210.43,210.4,4.7528]
[1731257740109,19.05164452,210.41,210.38,16.6363]
[1731257740327,19.05164452,210.42,210.38,16.6363]
[1731257741020,19.05164452,210.41,210.38,16.6363]
[1731257741229,19.05164452,210.39,210.38,11.8832]
[1731257741535,19.05164452,210.39,210.38,16.6365]
[1731257741728,19.05164452,210.4,210.38,16.6365]
[1731257741939,19.05164452,210.43,210.38,16.6365]
[1731257742226,19.05164452,210.42,210.38,16.6365]
[1731257742619,4.7514,210.47,210.38,16.6365]
[1731257742620,19.05164452,210.41,210.38,16.6365]
[1731257742817,19.05164452,210.41,210.38,11.8832]
[1731257743023,19.05164452,210.44,210.39,23.776884]
[1731257743639,19.05164452,210.41,210.38,11.8832]
[1731257743929,19.05164452,210.43,210.38,11.8832]
[1731257744519,19.05164452,210.42,210.38,11.8832]
[1731257744713,19.05164452,210.4,210.38,11.8832]
[1731257744918,4.7508,210.49,210.38,11.8832]
[1731257744919,19.05164452,210.39,210.38,11.8832]
[1731257745435,19.05164452,210.39,210.35,4.7539]
[1731257745634,19.05164452,210.36,210.35,4.7539]
[1731257745833,19.05164452,210.36,210.32,6.5296]
[1731257746011,19.05164452,210.33,210.3,16.6428]
[1731257746542,19.05164452,210.33,210.3,11.8877]
[1731257746721,19.05164452,210.34,210.3,16.6428]
[1731257746927,19.05164452,210.43,210.3,59.46994452]
[1731257746928,19.05164452,210.37,210.3,59.46994452]
[1731257747238,19.05164452,210.37,210.31,23.776884]
[1731257748234,19.05164452,210.36,210.31,23.776884]
[1731257748436,19.05164452,210.34,210.3,16.6428]
[1731257748626,19.05164452,210.33,210.3,16.6428]
[1731257748831,19.05164452,210.34,210.3,16.6428]
[1731257750939,11.92489976,210.34,210.3,16.6428]
[1731257751148,11.92489976,210.34,210.29,13.10322154]
[1731257751330,11.92489976,210.34,210.3,23.776884]
[1731257751531,11.92489976,210.35,210.3,23.776884]
[1731257752543,11.92489976,210.35,210.3,40.419684]
[1731257752918,11.92489976,210.37,210.3,52.34458376]
[1731257753121,11.92489976,210.38,210.31,11.92489976]
[1731257753335,11.92489976,210.37,210.3,40.419684]
[1731257754138,11.92489976,210.4,210.33,11.92489976]
[1731257754343,11.92489976,210.41,210.34,11.92489976]
[1731257754856,11.92489976,210.42,210.35,35.70178376]
[1731257755835,11.92489976,210.41,210.35,23.776884]
[1731257756032,11.92489976,210.41,210.36,16.638]
[1731257756343,11.92489976,210.41,210.37,23.776884]
[1731257757646,11.92489976,210.43,210.39,23.776884]
[1731257757944,11.92489976,210.45,210.39,39.179784]
[1731257759233,11.92489976,210.45,210.4,16.6349]
[1731257759431,11.92489976,210.46,210.41,23.776884]
[1731257759640,11.92489976,210.51,210.44,35.70178376]
[1731257759951,159.1,210.58,210.4,16.7349]
[1731257759952,11.92489976,210.54,210.47,18.45269976]
[1731257760250,11.92489976,210.55,210.48,55.70178376]
[1731257760432,11.92489976,210.55,210.5,23.776884]
[1731257760760,11.92489976,210.54,210.48,43.776884]
[1731257761251,11.92489976,210.54,210.5,23.776884]
[1731257761956,21.0868,210.6,210.47,6.5278]
[1731257761957,11.92489976,210.51,210.47,6.5278]
[1731257762244,11.92489976,210.51,210.47,11.2789]
[1731257762733,16.4384,210.6,210.47,11.2789]
[1731257762734,16.3384,210.6,210.48,23.776884]
[1731257762937,4.95090486,210.62,210.48,23.776884]
[1731257762938,11.92489976,210.57,210.5,35.70178376]
[1731257763145,11.92489976,210.6,210.53,11.92489976]
[1731257763328,11.92489976,210.59,210.54,16.6238]
[1731257763649,11.92489976,210.58,210.54,16.6238]
[1731257764353,11.92489976,210.57,210.54,16.6238]
[1731257765254,28.26329976,210.65,210.49,15.4029]
[1731257765255,11.92489976,210.55,210.52,4.7499]
[1731257765445,11.92489976,210.53,210.5,4.7504]
[1731257766250,11.92489976,210.51,210.5,4.7504]
[1731257766545,11.92489976,210.51,210.44,27.32779976]
[1731257766546,11.92489976,210.51,210.44,27.2822]
[1731257766749,11.92489976,210.46,210.44,11.8793]
[1731257767134,11.92489976,210.45,210.44,11.8793]
[1731257767336,28.26329976,210.54,210.44,11.8793]
[1731257767337,11.92489976,210.47,210.44,16.6312]
[1731257767539,11.92489976,210.46,210.44,16.6312]
[1731257767736,11.92489976,210.46,210.44,11.8793]
[1731257768041,11.92489976,210.45,210.42,11.28]
[1731257768739,11.92489976,210.46,210.42,11.28]
[1731257769150,11.92489976,210.48,210.43,23.776884]
[1731257769443,11.92489976,210.47,210.43,23.776884]
[1731257769644,11.92489976,210.46,210.43,23.776884]
[1731257770243,11.92489976,210.45,210.43,23.776884]
[1731257770462,11.92489976,210.46,210.43,28.528884]
[1731257770636,11.92489976,210.47,210.43,40.409284]
[1731257771375,11.92489976,210.46,210.43,40.409284]
[1731257771851,21.0348,210.6,210.45,35.70178376]
[1731257772040,11.92489976,210.53,210.45,35.70178376]
[1731257772237,11.92489976,210.52,210.45,35.70178376]
[1731257772439,11.92489976,210.52,210.45,23.776884]
[1731257773253,11.92489976,210.54,210.47,23.776884]
[1731257773552,11.92489976,210.52,210.47,23.776884]
[1731257773951,11.92489976,210.53,210.47,23.776884]
[1731257774155,11.92489976,210.54,210.47,23.776884]
[1731257774337,11.92489976,210.53,210.47,23.776884]
[1731257774540,11.92489976,210.53,210.49,23.776884]
[1731257775455,11.92489976,210.54,210.51,23.776884]
[1731257776353,4.7487,210.59,210.51,23.776884]
[1731257776539,11.92489976,210.53,210.51,28.527184]
[1731257777461,4.7487,210.59,210.5,11.8764]
[1731257777462,11.92489976,210.52,210.5,11.8764]
[1731257777662,11.92489976,210.52,210.5,35.653284]
[1731257777836,11.92489976,210.54,210.51,23.776884]
[1731257778731,11.92489976,210.55,210.51,23.776884]
[1731257778935,159.1,210.62,210.53,23.776884]
[1731257779134,11.92489976,210.6,210.53,23.776884]
[1731257779557,11.92489976,210.59,210.53,23.776884]
[1731257779757,11.92489976,210.58,210.53,23.776884]
[1731257780139,11.92489976,210.57,210.53,23.776884]
[1731257780339,11.92489976,210.54,210.53,23.776884]
[1731257780542,11.92489976,210.56,210.53,28.526684]
[1731257781158,11.92489976,210.54,210.53,23.776884]
[1731257781957,11.92489976,210.54,210.49,11.8765]
[1731257782147,11.92489976,210.5,210.49,11.8765]
[1731257782357,11.92489976,210.5,210.47,6.6039]
[1731257782535,11.92489976,210.48,210.45,11.8792]
[1731257782852,11.92489976,210.46,210.42,11.3561]
[1731257783049,11.92489976,210.43,210.42,6.6039]
[1731257783240,11.92489976,210.43,210.41,11.8815]
[1731257783450,0.2,210.53,210.37,22.0766]
[1731257783451,11.92489976,210.44,210.38,11.8832]
[1731257783637,32.1186,210.56,210.32,6.6039]
[1731257783638,11.92489976,210.39,210.32,6.6039]
[1731257784143,11.92489976,210.39,210.33,16.6403]
[1731257785139,11.92489976,210.44,210.36,11.92489976]
[1731257785343,11.92489976,210.44,210.37,11.92489976]
[1731257785739,11.92489976,210.44,210.36,11.92489976]
[1731257785934,11.92489976,210.43,210.36,11.92489976]
[1731257786166,11.92489976,210.43,210.38,23.776884]
[1731257786541,11.92489976,210.39,210.37,16.6373]
[1731257786742,11.92489976,210.43,210.37,11.8838]
[1731257786743,11.92489976,210.38,210.37,11.8838]
[1731257787045,11.92489976,210.41,210.37,16.6373]
[1731257787449,11.92489976,210.43,210.37,16.6373]
[1731257787646,11.92489976,210.44,210.37,28.56219976]
[1731257787862,11.92489976,210.43,210.38,23.776884]
[1731257788043,11.92489976,210.4,210.38,23.776884]
[1731257788248,11.92489976,210.41,210.38,28.529984]
[1731257788444,11.92489976,210.42,210.38,40.413184]
[1731257789258,11.92489976,210.41,210.38,40.413184]
[1731257789575,11.92489976,210.4,210.38,40.413184]
[1731257789956,11.92489976,210.41,210.38,40.413184]
[1731257790167,11.92489976,210.43,210.38,40.413184]
[1731257790463,11.92489976,210.45,210.38,40.413184]
[1731257790671,11.92489976,210.46,210.4,23.776884]
[1731257790969,11.92489976,210.45,210.4,23.776884]
[1731257791264,11.92489976,210.45,210.39,23.776884]
[1731257791449,11.92489976,210.45,210.41,23.776884]
[1731257792553,11.92489976,210.42,210.41,23.776884]
[1731257793467,11.92489976,210.42,210.35,11.8846]
[1731257793657,11.92489976,210.4,210.35,11.8846]
[1731257793883,11.92489976,210.42,210.35,23.80949976]
[1731257794058,11.92489976,210.42,210.35,11.8846]
[1731257794474,11.92489976,210.43,210.36,11.92489976]
[1731257794652,11.92489976,210.43,210.37,23.776884]
[1731257794969,11.92489976,210.39,210.35,16.6385]
[1731257795149,11.92489976,210.36,210.35,11.8846]
[1731257795353,11.92489976,210.36,210.35,16.6385]
[1731257796453,11.92489976,210.36,210.35,23.776884]
[1731257798772,16.67869976,210.36,210.25,11.8902]
[1731257798958,11.92489976,210.27,210.25,11.8902]
[1731257799158,11.92489976,210.31,210.25,11.8902]
[1731257799855,11.92489976,210.33,210.25,23.81509976]
[1731257800067,11.92489976,210.32,210.26,23.776884]
[1731257800373,4.7534,210.38,210.25,11.8902]
[1731257800374,11.92489976,210.31,210.27,11.8894]
[1731257800757,11.92489976,210.3,210.27,11.8894]
[1731257801673,11.92489976,210.3,210.28,23.776884]
[1731257802250,11.92489976,210.29,210.28,23.776884]
[1731257802562,11.92489976,210.31,210.28,23.776884]
[1731257802749,11.92489976,210.3,210.28,23.776884]
[1731257803261,11.92489976,210.31,210.28,23.776884]
[1731257803577,11.92489976,210.31,210.3,23.776884]
[1731257804878,11.92489976,210.34,210.32,23.776884]
[1731257806372,11.92489976,210.33,210.32,23.776884]
[1731257806566,11.92489976,210.35,210.33,4.7544]
[1731257806770,11.92489976,210.36,210.34,23.776884]
[1731257807076,11.92489976,210.36,210.32,23.776884]
[1731257807978,11.92489976,210.35,210.32,23.776884]
[1731257808278,11.92489976,210.34,210.32,23.776884]
[1731257808577,11.92489976,210.35,210.32,28.531384]
[1731257808906,11.92489976,210.34,210.32,28.531384]
[1731257809075,11.92489976,210.33,210.32,23.776884]
[1731257810175,11.92489976,210.33,210.27,16.6448]
[1731257810473,11.92489976,210.28,210.27,16.6448]
[1731257810676,11.92489976,210.3,210.27,16.6448]
[1731257811583,11.92489976,210.33,210.28,40.421184]
[1731257811954,4.7534,210.38,210.28,16.6443]
[1731257811955,11.92489976,210.3,210.28,16.6443]
[1731257812275,11.92489976,210.33,210.29,23.776884]
[1731257812878,11.92489976,210.34,210.31,23.776884]
[1731257813872,11.92489976,210.33,210.31,23.776884]
[1731257814260,11.92489976,210.33,210.29,40.420484]
[1731257816767,11.92489976,210.34,210.29,40.420484]
[1731257817582,4.7533,210.38,210.29,40.420484]
[1731257817583,11.92489976,210.33,210.29,40.420484]
[1731257817971,11.92489976,210.32,210.29,40.420484]
[1731257818767,11.92489976,210.33,210.29,40.420484]
[1731257819172,11.92489976,210.34,210.29,40.420484]
[1731257819885,11.92489976,210.33,210.29,40.420484]
[1731257820390,11.92489976,210.32,210.29,40.420484]
[1731257820764,11.92489976,210.33,210.29,40.420484]
[1731257820969,11.92489976,210.34,210.29,40.420484]
[1731257821984,11.92489976,210.33,210.29,40.420484]
[1731257823774,11.92489976,210.34,210.29,40.420484]
[1731257825571,11.92489976,210.38,210.31,23.776884]
[1731257825982,11.92489976,210.39,210.32,11.92489976]
[1731257826184,11.92489976,210.37,210.31,23.776884]
[1731257826975,11.92489976,210.37,210.33,23.776884]
[1731257827892,11.92489976,210.38,210.33,23.776884]
[1731257828183,11.92489976,210.38,210.35,23.776884]
[1731257828387,11.92489976,210.41,210.35,23.776884]
[1731257828782,11.92489976,210.42,210.35,23.776884]
[1731257828984,11.92489976,210.43,210.37,23.776884]
[1731257830497,11.92489976,210.43,210.39,23.776884]
[1731257831589,11.92489976,210.49,210.42,11.92489976]
[1731257831892,11.92489976,210.51,210.45,23.776884]
[1731257832096,11.92489976,210.53,210.46,11.92489976]
[1731257832278,11.92489976,210.53,210.47,23.776884]
[1731257832474,15.6783,210.6,210.49,23.776884]
[1731257832475,11.92489976,210.55,210.49,23.776884]
[1731257832693,11.92489976,210.54,210.49,23.776884]
[1731257833075,20.4267,210.6,210.49,23.776884]
[1731257833076,11.92489976,210.52,210.49,23.776884]
[1731257833282,11.92489976,210.5,210.44,23.776884]
[1731257833499,15.6783,210.5,210.4,4.7527]
[1731257833692,15.6783,210.5,210.4,16.6348]
[1731257834277,11.92489976,210.43,210.4,16.6348]
[1731257834489,15.6783,210.5,210.4,16.6348]
[1731257834490,11.92489976,210.42,210.4,11.8821]
[1731257834788,15.6783,210.5,210.41,23.776884]
[1731257834789,20.0,210.49,210.41,23.776884]
[1731257834995,11.92489976,210.43,210.4,11.8821]
[1731257835498,11.92489976,210.42,210.4,11.8821]
[1731257836180,24.7508,210.49,210.4,11.8821]
[1731257836181,11.92489976,210.43,210.41,23.776884]
[1731257836887,11.92489976,210.46,210.41,23.776884]
[1731257837391,11.92489976,210.47,210.41,23.776884]
[1731257837595,11.92489976,210.45,210.41,23.776884]
[1731257838104,11.92489976,210.45,210.43,23.776884]
[1731257838699,11.92489976,210.46,210.43,23.776884]
[1731257838988,11.92489976,210.5,210.43,23.776884]
[1731257839196,11.92489976,210.52,210.45,11.92489976]
[1731257839500,11.92489976,210.53,210.46,41.83658376]
[1731257839793,11.92489976,210.51,210.46,29.911684]
[1731257839980,11.92489976,210.56,210.49,11.92489976]
[1731257840174,11.92489976,210.54,210.48,23.776884]
[1731257840374,11.92489976,210.53,210.48,23.776884]
[1731257841291,20.4266,210.6,210.5,23.776884]
[1731257841292,4.7486,210.59,210.5,23.776884]
[1731257841476,11.92489976,210.51,210.49,11.877]
[1731257841680,11.92489976,210.5,210.49,35.653884]
[1731257841879,11.92489976,210.5,210.45,4.7515]
[1731257842094,0.1,210.56,210.45,4.7515]
[1731257842282,11.92489976,210.49,210.44,11.8795]
[1731257842480,16.62,210.59,210.44,28.55629976]
[1731257842481,11.92489976,210.51,210.44,28.55629976]
[1731257843194,11.92489976,210.5,210.45,23.776884]
[1731257843989,11.92489976,210.54,210.49,23.776884]
[1731257844191,4.95133842,210.63,210.54,23.776884]
[1731257844390,11.92489976,210.65,210.6,23.776884]
[1731257844805,15.6783,210.68,210.58,23.776884]
[1731257844998,11.92489976,210.59,210.58,23.776884]
[1731257845308,11.92489976,210.61,210.58,28.525484]
[1731257846087,11.92489976,210.6,210.58,28.525484]
[1731257846283,11.92489976,210.61,210.58,28.525484]
[1731257846488,11.92489976,210.62,210.58,40.397384]
[1731257847202,11.92489976,210.63,210.58,40.397384]
[1731257847400,11.92489976,210.61,210.58,40.397384]
[1731257847980,11.92489976,210.62,210.58,40.397384]
[1731257848188,11.92489976,210.61,210.58,40.397384]
[1731257848705,11.92489976,210.6,210.58,11.8719]
[1731257850093,11.92489976,210.61,210.58,11.8719]
[1731257850714,11.92489976,210.6,210.54,23.776884]
[1731257851309,11.92489976,210.61,210.54,11.92489976]
[1731257851505,11.92489976,210.61,210.54,23.776884]
[1731257851808,11.92489976,210.6,210.56,23.776884]
[1731257852017,11.92489976,210.61,210.56,23.776884]
[1731257852696,11.92489976,210.6,210.56,23.776884]
[1731257852896,11.92489976,210.6,210.57,4.749]
[1731257853127,0.1,210.8,210.59,52.366884]
[1731257853403,11.92489976,210.75,210.68,23.776884]
[1731257854418,11.92489976,210.73,210.69,16.612]
[1731257854594,24.7439,210.8,210.7,23.776884]
[1731257854800,11.42489976,210.76,210.7,23.776884]
[1731257855115,11.92489976,210.76,210.7,23.776884]
[1731257855697,11.92489976,210.78,210.7,23.776884]
[1731257856202,11.92489976,210.78,210.72,23.776884]
[1731257856609,11.92489976,210.78,210.72,35.70178376]
[1731257857209,11.92489976,210.78,210.72,23.776884]
[1731257857421,11.92489976,210.78,210.74,23.776884]
[1731257857921,11.92489976,210.75,210.73,16.6089]
[1731257858423,11.92489976,210.77,210.73,16.6089]
[1731257859208,11.92489976,210.78,210.73,16.6089]
[1731257860094,11.92489976,210.77,210.73,16.6089]
[1731257860507,4.7432,210.83,210.73,16.6089]
[1731257860715,11.92489976,210.79,210.73,16.6089]
[1731257862395,11.92489976,210.76,210.73,16.6089]
[1731257862700,11.92489976,210.78,210.73,16.6089]
[1731257862900,11.92489976,210.79,210.73,16.6089]
[1731257864616,11.92489976,210.77,210.73,11.8635]
[1731257865615,11.92489976,210.74,210.73,11.8635]
[1731257865823,11.92489976,210.77,210.73,35.640384]
[1731257866399,11.92489976,210.76,210.73,35.640384]
[1731257866815,11.92489976,210.76,210.73,40.385784]
[1731257867318,11.92489976,210.77,210.73,40.385784]
[1731257868517,11.92489976,210.74,210.73,11.8635]
[1731257868697,4.7436,210.81,210.73,16.6089]
[1731257868698,11.92489976,210.76,210.73,16.6089]
[1731257869131,11.92489976,210.75,210.73,16.6089]
[1731257869603,11.92489976,210.75,210.73,11.8635]
[1731257869999,11.92489976,210.74,210.69,6.3763]
[1731257870220,11.92489976,210.7,210.68,16.612]
[1731257870416,11.92489976,210.71,210.68,11.8657]
[1731257870618,11.92489976,210.7,210.68,11.8657]
[1731257871009,11.92489976,210.71,210.68,11.8657]
[1731257871330,11.92489976,210.72,210.68,11.8657]
[1731257872023,11.92489976,210.69,210.68,11.8657]
[1731257872226,11.92489976,210.7,210.68,11.8657]
[1731257874907,2.59721708,210.69,210.68,11.8657]
[1731257875820,2.59721708,210.69,210.64,22.1952]
[1731257875821,14.52211684,210.69,210.64,11.3541]
[1731257876028,11.92489976,210.65,210.63,11.8686]
[1731257876227,14.52211684,210.64,210.63,11.8686]
[1731257877110,14.52211684,210.64,210.63,16.6162]
[1731257877626,14.52211684,210.64,210.63,11.8686]
[1731257878717,14.52211684,210.64,210.58,11.8715]
[1731257878928,11.92489976,210.59,210.54,11.8742]
[1731257879226,2.59721708,210.58,210.55,11.92489976]
[1731257879722,2.59721708,210.58,210.54,16.6238]
[1731257879723,2.59721708,210.58,210.56,11.92489976]
[1731257880111,2.59721708,210.58,210.57,23.776884]
[1731257880711,2.59721708,210.58,210.57,28.525884]
[1731257881730,2.59721708,210.58,210.57,4.749]
[1731257882914,14.52211684,210.58,210.51,4.7503]
[1731257883121,11.92489976,210.56,210.51,4.7503]
[1731257883329,2.59721708,210.55,210.51,4.7503]
[1731257884318,2.59721708,210.55,210.54,23.776884]
[1731257884511,2.59721708,210.55,210.53,16.6246]
[1731257885512,2.59721708,210.55,210.53,11.8747]
[1731257887224,2.59721708,210.55,210.52,23.776884]
[1731257887423,2.59721708,210.55,210.52,35.70178376]
[1731257887714,2.59721708,210.55,210.54,35.70178376]
[1731257887940,2.59721708,210.55,210.54,11.92489976]
[1731257888127,2.59721708,210.55,210.51,23.776884]
[1731257889439,2.59721708,210.55,210.53,23.776884]
[1731257890344,2.59721708,210.55,210.54,28.526484]
[1731257891542,14.52211684,210.55,210.54,28.526484]
[1731257891724,2.59721708,210.55,210.54,28.526484]
[1731257894332,2.59721708,210.55,210.54,40.45138376]
[1731257895437,2.59721708,210.55,210.54,46.59888376]
[1731257897445,2.59721708,210.55,210.54,34.673984]
[1731257897646,2.59721708,210.55,210.54,46.59888376]
[1731257899353,2.59721708,210.55,210.54,4.7496]
[1731257899732,2.59721708,210.55,210.52,16.6253]
[1731257900350,2.59721708,210.55,210.52,16.6254]
[1731257901331,2.59721708,210.55,210.53,23.776884]
[1731257902135,2.59721708,210.55,210.53,35.70178376]
[1731257902343,2.59721708,210.55,210.54,35.70178376]
[1731257903359,2.59721708,210.55,210.54,40.45138376]
[1731257903743,2.59721708,210.55,210.54,34.673984]
[1731257904655,2.59721708,210.55,210.54,58.52378352]
[1731257905127,2.59721708,210.55,210.54,46.59888376]
[1731257907945,2.59721708,210.55,210.54,34.673984]
[1731257908246,2.59721708,210.55,210.54,46.59888376]
[1731257910941,2.59721708,210.55,210.54,63.97234002]
[1731257911243,11.92489976,210.7,210.56,0.1]
[1731257911451,11.92489976,210.71,210.65,23.776884]
[1731257911647,27.55129976,210.72,210.65,35.70178376]
[1731257912035,15.6264,210.72,210.66,11.92489976]
[1731257912353,27.55129976,210.72,210.67,23.776884]
[1731257912949,27.55129976,210.72,210.66,23.776884]
[1731257913144,27.55129976,210.72,210.67,16.6136]
[1731257913338,11.92489976,210.72,210.68,23.776884]
[1731257913732,20.8228,210.77,210.68,23.776884]
[1731257913733,11.92489976,210.73,210.68,23.776884]
[1731257913976,11.92489976,210.74,210.68,23.776884]
[1731257914641,11.42489976,210.74,210.68,23.776884]
[1731257915352,11.42489976,210.74,210.7,23.776884]
[1731257915850,11.92489976,210.73,210.7,23.776884]
[1731257916052,11.92489976,210.72,210.7,23.776884]
[1731257916551,11.92489976,210.71,210.7,23.776884]
[1731257917640,16.0783,210.77,210.71,16.6104]
[1731257917851,11.92489976,210.72,210.71,16.6104]
[1731257918235,11.92489976,210.73,210.71,40.387284]
[1731257918737,11.92489976,210.72,210.71,40.387284]
[1731257919133,11.92489976,210.72,210.71,16.6104]
[1731257919448,11.92489976,210.73,210.71,40.387284]
[1731257919950,11.92489976,210.73,210.72,23.776884]
[1731257920143,11.92489976,210.74,210.72,23.776884]
[1731257921332,11.92489976,210.73,210.72,23.776884]
[1731257922159,11.92489976,210.73,210.71,16.6104]
[1731257922359,11.92489976,210.72,210.71,16.6104]
[1731257922734,11.92489976,210.72,210.71,40.387284]
[1731257923159,11.92489976,210.75,210.72,23.776884]
[1731257923647,11.92489976,210.76,210.73,16.6089]
[1731257923856,11.92489976,210.76,210.74,23.776884]
[1731257924038,11.92489976,210.76,210.73,16.6089]
[1731257924039,11.92489976,210.75,210.73,11.8635]
[1731257924241,11.92489976,210.74,210.73,11.8635]
[1731257924757,11.92489976,210.74,210.73,40.385784]
[1731257924940,11.92489976,210.74,210.73,35.640384]
[1731257925250,11.92489976,210.74,210.68,11.8659]
[1731257925452,11.92489976,210.72,210.69,23.776884]
[1731257925753,11.92489976,210.73,210.69,23.776884]
[1731257926050,11.92489976,210.73,210.7,16.6112]
[1731257926242,11.92489976,210.73,210.71,23.776884]
[1731257926759,15.7344,210.82,210.71,23.776884]
[1731257926760,11.92489976,210.75,210.71,23.776884]
[1731257928155,11.92489976,210.74,210.72,11.864]
[1731257928347,11.92489976,210.74,210.73,23.776884]
[1731257929343,11.92489976,210.74,210.73,28.522284]
[1731257929869,11.92489976,210.74,210.62,15.3119]
[1731257929870,11.92489976,210.74,210.7,4.7458]
[1731257930165,15.7344,210.82,210.7,16.611]
[1731257930460,11.92489976,210.72,210.7,16.611]
[1731257931348,11.92489976,210.73,210.66,11.92489976]
[1731257931552,11.92489976,210.73,210.67,11.92489976]
[1731257931752,11.92489976,210.74,210.67,11.92489976]
[1731257932060,11.92489976,210.73,210.68,23.776884]
[1731257932363,11.92489976,210.73,210.67,23.776884]
[1731257932559,11.92489976,210.73,210.69,23.776884]
[1731257932967,11.92489976,210.72,210.69,23.776884]
[1731257933161,11.92489976,210.73,210.69,23.776884]